[Event "32nd NATO Championship 2022"]
[Site "Tartu"]
[Date "2022.07.01"]
[Round "7.2"]
[White "Valeinis, Janis"]
[Black "Papasimakopoulos, Alexandros"]
[Result "0-1"]
[ECO "B13"]
[WhiteElo "2176"]
[BlackElo "2259"]
[Annotator "TA"]
[PlyCount "116"]
[EventDate "2022.06.27"]
[EventType "swiss"]
[EventCountry "EST"]
[SourceTitle "playchess.com"]
[Source "ChessBase"]
[SourceQuality "1"]
[TimeControl "5400+30"]

{[%evp 11,116,30,48,38,37,33,45,35,41,43,47,24,20,2,22,8,24,-14,-14,-40,-33,-42,-38,-64,-34,-81,-35,-50,-42,-37,-37,-37,-41,-32,-40,-34,-40,-58,-8,-8,-8,-8,-8,-8,-8,-8,-8,-8,-8,-8,-8,-10,-10,-10,-10,-10,-10,-21,-20,-96,-108,-114,0,-79,-79,-81,-5,-108,-104,-106,-96,-96,-96,-96,-107,-96,-96,-96,-107,-135,-96,-96,-96,-96,-96,-1449,-1245,-1491,-1370,-1282,-1020,-1171,0,-842,-712,-651,-567,-1810,-1779,-5547,-5406,-4133,-354,-1537,-1263,-1561,-1110]} 1. Nf3 {[%emt 0:01:01]} g6 {[%emt 0:00:00]} 2. e4 {[%emt 0:01:26]} c6 {[%emt 0:00:30]} 3. d4 {[%emt 0:05:58]} d5 {[%emt 0:00:16]} 4. exd5 {[%emt 0:07:10]} cxd5 {[%emt 0:00:07]} 5. Bd3 {[%emt 0:00:10]} Bg7 {[%emt 0:00:57]} 6. O-O {[%emt 0:00:38]} Bg4 {[%emt 0:00:20]} 7. c3 {[%emt 0:00:20] B13: Caro-Kann: Exchange Variation and Panov-Botvinnik Attack.} Bxf3 {[%emt 0:01:02]} 8. Qxf3 {[%emt 0:00:05]} Nc6 {[%emt 0:00:23]} 9. Re1 {[%emt 0:00:17] White is slightly better.} Nf6 {[%emt 0:00:40]} 10. Nd2 {[%emt 0:00:25]} O-O {[%emt 0:00:13] [#]} 11. Nf1 $146 {[%emt 0:08:43]} ({Predecessor:} 11. Qe2 e6 12. Nf3 Qc7 13. Bg5 a6 14. Qd2 b5 15. b4 a5 16. Bxf6 Bxf6 17. Bxb5 axb4 18. cxb4 Nxd4 19. Nxd4 Qb6 20. Bc6 Qd8 21. Qd1 {½-½ (22) Mammadov,Z (2302)-Shanava,K (2556) Poti 2010}) 11... Re8 {[%emt 0:00:35]} 12. Bg5 {[%emt 0:02:12]} h6 {[%emt 0:09:14]} (12... e5 $5 {[%cal Re5e4]}) 13. Bh4 {[%emt 0:16:52]} e5 {[%emt 0:02:53]} 14. dxe5 {[%emt 0:00:46]} Nxe5 {[%emt 0:00:07]} 15. Qd1 {[%emt 0:00:20]} Qb6 {[%emt 0:01:47] Inhibits Bb5.} 16. Bxf6 {[%emt 0:08:09]} Bxf6 {[%emt 0:00:08]} 17. Re2 {[%emt 0:00:06]} d4 {[%emt 0:03:19] Black is more active.} 18. c4 {[%emt 0:03:45]} (18. cxd4 $15 {feels stronger.} Nxd3 19. Qxd3) 18... Nxd3 {[%emt 0:12:48]} (18... Re7 $17) 19. Qxd3 $15 {[%emt 0:00:29]} Rxe2 {[%emt 0:00:07]} 20. Qxe2 {[%emt 0:00:04]} Rd8 {[%emt 0:05:52]} 21. Rd1 {[%emt 0:00:11]} d3 {[%emt 0:00:12]} 22. Rxd3 {[%emt 0:00:05]} Rxd3 {[%emt 0:00:14]} 23. Qxd3 {[%emt 0:00:03]} Qxb2 {[%emt 0:00:20][%mdl 4096] Endgame KQB-KQN} 24. Qd2 {[%emt 0:21:15]} Bd4 {[%emt 0:05:45]} (24... Qb1 $15) 25. Qxb2 $11 {[%emt 0:00:25]} (25. g4 {feels hotter.} Qb6 26. Ng3 Kg7 27. Qe2) 25... Bxb2 {[%emt 0:00:06] KB-KN} 26. Nd2 {[%emt 0:00:04]} Kf8 {[%emt 0:06:01]} 27. Kf1 {[%emt 0:00:13]} Ke7 {[%emt 0:00:05]} 28. Ke2 {[%emt 0:00:15]} Kd6 {[%emt 0:00:04]} 29. Nb3 {[%emt 0:00:06]} Be5 {[%emt 0:04:05]} 30. h3 {[%emt 0:01:16]} Bc3 {[%emt 0:00:55]} 31. a4 {[%emt 0:02:41]} Ke5 {[%emt 0:00:32]} 32. Kd3 {[%emt 0:01:27]} Be1 {[%emt 0:00:08]} 33. Ke2 {[%emt 0:00:06]} Bb4 {[%emt 0:00:09]} 34. f3 {[%emt 0:00:55]} h5 {[%emt 0:01:22]} 35. Kd3 {[%emt 0:00:09]} (35. Ke3 $11) 35... Kf4 $17 {[%emt 0:01:56] Strongly threatening ...Kg3.} 36. Ke2 {[%emt 0:00:06]} Ke5 {[%emt 0:01:07]} 37. Kd3 {[%emt 0:00:07]} g5 {[%emt 0:00:06]} 38. Ke3 {[%emt 0:00:27]} b6 {[%emt 0:00:31]} (38... h4 $17) 39. Kd3 {[%emt 0:12:12] [#]} (39. g3 $11) 39... Kf4 $1 {[%emt 0:00:56] aiming for ...Kg3.} 40. Ke2 {[%emt 0:00:14]} a5 {[%emt 0:09:18]} 41. Kf2 {[%emt 0:00:19] [#]} h4 $1 {[%emt 0:00:59] Prevents g3+.} 42. Ke2 {[%emt 0:00:25]} Ba3 {[%emt 0:05:45]} 43. Nd2 {[%emt 0:00:10]} Kg3 {[%emt 0:01:05]} 44. Kf1 {[%emt 0:00:05]} f5 {[%emt 0:00:11]} 45. Nb3 {[%emt 0:00:04]} g4 {[%emt 0:01:09]} 46. fxg4 {[%emt 0:00:04]} fxg4 {[%emt 0:00:02]} 47. hxg4 {[%emt 0:00:07]} Kxg4 {[%emt 0:00:05]} 48. Na1 $2 {[%emt 0:02:02][%mdl 8192]} (48. Nd4 $17) 48... Kf4 $19 {[%emt 0:00:44]} 49. Ke2 {[%emt 0:00:41]} Ke4 {[%emt 0:00:24] Threatens to win with ...Bb4.} 50. Nc2 {[%emt 0:07:33]} Bc1 {[%emt 0:00:14]} 51. Na1 {[%emt 0:01:05]} Ba3 {[%emt 0:00:58]} 52. Nc2 $1 {[%emt 0:01:37]} Be7 {[%emt 0:01:37] ...Bd8 is the strong threat.} 53. Kd2 {[%emt 0:00:50]} Bf6 {[%emt 0:00:30]} 54. Na3 {[%emt 0:00:38]} Kd4 {[%emt 0:00:23]} 55. Kc2 {[%emt 0:00:28]} Be7 {[%emt 0:00:56]} 56. Nb5+ {[%emt 0:00:17]} Kxc4 $2 {[%emt 0:00:11]} (56... Ke3 57. Nc3 Kf2) 57. Nc3 $2 {[%emt 0:00:40]} (57. Na7) 57... Bd8 {[%emt 0:00:22] Hoping for ...Bf6.} 58. Na2 {[%emt 0:00:07]} Bf6 {[%emt 0:00:09] Weighted Error Value: White=0.58/Black=0.40} 0-1

[Event "32nd NATO Championship 2022"]
[Site "Tartu"]
[Date "2022.07.01"]
[Round "7.10"]
[White "Cheung, Jan"]
[Black "Onley, David E"]
[Result "0-1"]
[ECO "E92"]
[WhiteElo "1954"]
[BlackElo "2083"]
[Annotator "NA RC"]
[PlyCount "164"]
[EventDate "2022.06.27"]
[EventType "swiss"]
[EventCountry "EST"]
[SourceTitle "playchess.com"]
[Source "ChessBase"]
[SourceQuality "1"]
[TimeControl "5400+30"]

1. d4 {[%emt 0:00:04]} Nf6 {[%emt 0:00:06]} 2. c4 {[%emt 0:00:06]} g6 {[%emt 0:00:09]} 3. Nc3 {[%emt 0:00:14]} Bg7 {[%emt 0:00:08]} 4. e4 {[%emt 0:00:06]} d6 {[%emt 0:00:08]} 5. Nf3 {[%emt 0:00:05]} O-O {[%emt 0:00:07]} 6. Be2 {[%emt 1:32:55]} e5 {[%emt 1:32:52]} 7. d5 {[%emt 0:00:00]} a5 {[%emt 0:00:00]} 8. Bg5 {[%emt 0:00:00]} h6 {[%emt 0:00:00]} 9. Be3 {[%emt 0:00:00]} Na6 {[%emt 0:00:00]} 10. Nd2 {[%emt 0:00:00]} Nc5 {[%emt 0:00:00]} 11. g4 {[%emt 0:00:00]} Ne8 {[%emt 0:00:00]} 12. h4 {[%emt 0:00:00]} f5 {[%emt 0:00:00]} (12... a4 $16) 13. gxf5 {[%emt 0:00:00]} gxf5 {[%emt 0:00:00]} 14. f3 {[%emt 0:00:00]} f4 {[%emt 0:00:00]} 15. Bf2 $1 {[%emt 0:00:00]} Nf6 {[%emt 0:00:00]} 16. Qc2 {[%emt 0:00:00]} (16. Nb3 $14) 16... Nh5 {[%emt 0:00:00]} 17. O-O-O {[%emt 0:00:00]} Bd7 {[%emt 0:00:00]} 18. Rdg1 {[%emt 0:00:00]} Kh7 {[%emt 0:00:00]} 19. Kb1 {[%emt 0:00:00]} Bf6 {[%emt 0:00:00]} 20. Nb3 {[%emt 0:00:00]} Nxb3 {[%emt 0:00:00]} 21. Qxb3 {[%emt 0:00:00]} b6 {[%emt 0:00:00]} 22. Qd1 {[%emt 0:00:00]} Qe7 {[%emt 0:00:00]} 23. Qe1 {[%emt 0:00:00]} Rae8 {[%emt 0:00:00]} 24. Nb5 {[%emt 0:00:00]} Qd8 {[%emt 0:00:00]} 25. b3 {[%emt 0:00:00]} Rg8 {[%emt 0:00:00]} 26. a3 {[%emt 0:00:00]} Rxg1 {[%emt 0:00:00]} 27. Rxg1 {[%emt 0:00:00]} Rg8 {[%emt 0:00:00]} 28. Rxg8 {[%emt 0:00:00]} Kxg8 {[%emt 0:00:00]} 29. Bf1 {[%emt 0:00:00]} Kh7 {[%emt 0:00:00]} 30. Kb2 {[%emt 0:00:00]} Ng3 {[%emt 0:00:00]} 31. Bxg3 {[%emt 0:00:00]} fxg3 {[%emt 0:00:00]} 32. Qxg3 {[%emt 0:00:00]} Bxh4 {[%emt 0:00:00]} 33. Qh2 $1 {[%emt 0:00:00]} Bg5 {[%emt 0:00:00]} 34. Bh3 {[%emt 0:00:00]} Bf4 {[%emt 0:00:00]} 35. Qg2 {[%emt 0:00:00]} Bg5 {[%emt 0:00:00]} 36. Kc2 {[%emt 0:00:00]} Qc8 {[%emt 0:01:19]} 37. Bg4 {[%emt 0:00:46]} Kg6 {[%emt 0:03:26]} 38. Kd3 {[%emt 0:01:24]} h5 {[%emt 0:01:06]} 39. Bxd7 {[%emt 0:02:34]} Qxd7 {[%emt 0:00:08]} 40. b4 {[%emt 0:01:43]} axb4 {[%emt 0:00:18]} 41. axb4 {[%emt 0:00:03]} h4 {[%emt 0:00:34]} 42. Nc3 {[%emt 0:02:07]} h3 {[%emt 0:03:47]} 43. Qg1 {[%emt 0:01:59]} Kf6 {[%emt 0:00:29]} 44. Ne2 {[%emt 0:01:08]} Qa4 {[%emt 0:01:51]} 45. Qg3 {[%emt 0:01:35]} Qa2 {[%emt 0:01:23]} 46. f4 {[%emt 0:00:46]} exf4 {[%emt 0:02:26]} 47. Qxh3 {[%emt 0:00:44]} Qb1+ {[%emt 0:00:53]} 48. Kc3 {[%emt 0:00:18]} (48. Kd4 $11) 48... Qxe4 {[%emt 0:01:08]} 49. Qh8+ {[%emt 0:01:29]} Kf7 {[%emt 0:00:12]} 50. Qh5+ {[%emt 0:01:24]} ({Don't go for} 50. Nd4 $2 Bf6 51. Qh5+ Ke7 $19) 50... Qg6 {[%emt 0:00:28]} 51. Qxg6+ {[%emt 0:00:43]} Kxg6 {[%emt 0:00:04]} 52. Ng1 {[%emt 0:00:32]} Kf5 {[%emt 0:00:25]} 53. Kd3 {[%emt 0:00:43]} Bh4 {[%emt 0:01:00]} 54. Nf3 {[%emt 0:00:14]} Bf2 {[%emt 0:00:15]} 55. Ke2 {[%emt 0:00:39]} Be3 {[%emt 0:00:30]} 56. Kd3 {[%emt 0:00:09]} Kg4 {[%emt 0:00:43]} 57. Ke4 {[%emt 0:00:25]} Kg3 {[%emt 0:00:23]} 58. Ng5 {[%emt 0:02:45]} Kf2 {[%emt 0:01:06]} 59. b5 {[%emt 0:00:23]} Ke2 {[%emt 0:00:35]} 60. Nf3 {[%emt 0:00:21]} Kf1 {[%emt 0:01:25]} 61. Kd3 {[%emt 0:00:41]} Kg2 {[%emt 0:00:22]} 62. Ke4 {[%emt 0:00:33]} Kg3 {[%emt 0:00:26]} 63. Ng5 {[%emt 0:00:38]} Bc5 {[%emt 0:00:34]} 64. Nf3 {[%emt 0:00:22]} Kg4 {[%emt 0:00:55]} 65. Nh2+ {[%emt 0:00:28]} Kg3 {[%emt 0:00:22]} 66. Nf3 {[%emt 0:00:09]} Be3 {[%emt 0:00:39]} ({Better is} 66... Bf2 $17) 67. Ng5 {[%emt 0:00:09]} Kf2 {[%emt 0:00:16]} 68. Nf3 {[%emt 0:01:31]} Ke2 {[%emt 0:00:13]} 69. Ng5 {[%emt 0:00:28]} Kd2 {[%emt 0:00:41]} 70. Ne6 {[%emt 0:00:56]} Kc3 {[%emt 0:00:10]} 71. c5 $2 {[%emt 0:01:02]} (71. Nxc7 $11 Kxc4 72. Ne8) 71... bxc5 {[%emt 0:01:05]} 72. Nxc7 {[%emt 0:00:07]} c4 {[%emt 0:00:24]} 73. b6 {[%emt 0:00:37]} Bxb6 {[%emt 0:00:41]} 74. Nb5+ {[%emt 0:00:04]} Kb4 {[%emt 0:00:37]} 75. Nxd6 {[%emt 0:00:07]} Bc7 {[%emt 0:00:20]} 76. Nf5 {[%emt 0:00:18]} c3 {[%emt 0:00:22]} 77. Kd3 {[%emt 0:00:25]} Kb3 {[%emt 0:00:31]} 78. Nd4+ {[%emt 0:00:24]} Kb2 {[%emt 0:00:23]} 79. Nc2 {[%emt 0:01:19]} f3 {[%emt 0:00:20]} 80. Ne3 {[%emt 0:00:23]} Kb3 {[%emt 0:00:27]} 81. Ke4 {[%emt 0:00:37]} f2 {[%emt 0:00:54]} 82. Kf3 {[%emt 0:01:13]} c2 {[%emt 0:00:41]} 0-1

[Event "32nd NATO Championship 2022"]
[Site "Tartu"]
[Date "2022.07.01"]
[Round "7.18"]
[White "Cirkvencic, Franci"]
[Black "Wagenaar, Harm Theo"]
[Result "1/2-1/2"]
[ECO "A17"]
[WhiteElo "2000"]
[BlackElo "1893"]
[Annotator "RC"]
[PlyCount "25"]
[EventDate "2022.06.27"]
[EventType "swiss"]
[EventCountry "EST"]
[SourceTitle "playchess.com"]
[Source "ChessBase"]
[SourceQuality "1"]
[TimeControl "5400+30"]

1. d4 {[%emt 0:00:07]} d5 {[%emt 0:00:57]} 2. Nf3 {[%emt 0:00:16]} Nf6 {[%emt 0:00:15]} 3. g3 {[%emt 0:00:15]} Bf5 {[%emt 0:00:55]} 4. Bg2 {[%emt 0:00:54]} e6 {[%emt 0:00:20]} 5. O-O {[%emt 0:00:51]} Be7 {[%emt 0:00:52]} 6. c4 {[%emt 0:01:13]} c6 {[%emt 0:00:14]} 7. cxd5 {[%emt 0:01:46]} exd5 {[%emt 0:00:29]} 8. Nc3 {[%emt 0:00:58]} h6 {[%emt 0:04:31]} 9. Bf4 {[%emt 0:04:48]} Nbd7 {[%emt 0:01:27]} 10. Ne5 {[%emt 0:02:26]} O-O {[%emt 0:00:52]} 11. h3 {[%emt 0:02:00]} Nxe5 {[%emt 0:07:01]} 12. Bxe5 {[%emt 0:00:51]} Bd6 {[%emt 0:05:51]} 13. Bxd6 {[%emt 0:05:13]} 1/2-1/2

[Event "32nd NATO Championship 2022"]
[Site "Tartu"]
[Date "2022.07.01"]
[Round "7.19"]
[White "Pedersen, Finn"]
[Black "Tammisto, Janek"]
[Result "1-0"]
[ECO "B06"]
[WhiteElo "2300"]
[BlackElo "1881"]
[Annotator "TA"]
[PlyCount "145"]
[EventDate "2022.06.27"]
[EventType "swiss"]
[EventCountry "EST"]
[SourceTitle "playchess.com"]
[Source "ChessBase"]
[SourceQuality "1"]
[TimeControl "5400+30"]

{[%evp 9,145,60,83,56,90,64,66,39,67,43,87,55,100,82,144,152,128,45,116,98,100,108,180,191,255,183,271,265,300,314,307,290,361,363,369,370,402,413,453,470,544,535,525,535,581,576,702,684,631,598,607,607,537,530,476,431,625,591,662,661,674,716,622,550,512,465,781,775,826,792,703,686,660,640,542,479,2196,1860,2531,1440,29956,29958,29956,29959,29959,29961,29969,29970,29970,29962,29960,29971,29965,29970,5708,5097,2840,1997,29958,1244,12799,6135,5728,4325,1645,0,5189,2634,6575,6432,5939,1847,6432,5591,5000,4723,2121,1870,5716,4829,29977,29978,29981,29982,29985,29986,29986,29987,29987,29988,29988,29989,29989,29990,29990,29991,29991,4810]} 1. e4 {[%emt 0:00:15]} g6 {[%emt 0:00:11]} 2. d4 {[%emt 0:01:15]} Bg7 {[%emt 0:00:08]} 3. Nc3 {[%emt 0:00:29]} d6 {[%emt 0:00:08]} 4. Be3 {[%emt 0:01:03]} b6 {[%emt 0:00:58]} 5. Qd2 {[%emt 0:02:28]} Bb7 {[%emt 0:01:04]} 6. O-O-O {[%emt 0:00:56] White is more active. B06: Modern Defence.} Nd7 {[%emt 0:01:02]} 7. f3 {[%emt 0:01:26]} c5 {[%emt 0:02:54]} 8. Nge2 {[%emt 0:01:16] White is slightly better.} a6 {[%emt 0:04:58]} 9. g4 {[%emt 0:01:22] [#]} b5 $146 {[%emt 0:09:37]} ({Predecessor:} 9... h6 10. h4 b5 11. Ng3 Qc7 12. Nce2 O-O-O 13. h5 g5 14. Nf5 Bf8 15. Kb1 e6 {0-1 (58) Tan,T (1700)-Lee,S Chiangmai 2013}) 10. dxc5 {[%emt 0:05:15]} Nxc5 {[%emt 0:01:55]} 11. Bd4 $36 {[%emt 0:01:56][%mdl 2048] White is in control.} Ne6 {[%emt 0:00:49]} ({Black should play} 11... Nf6) 12. Bxg7 $16 {[%emt 0:00:30]} Nxg7 {[%emt 0:00:01]} 13. Qd4 {[%emt 0:02:21]} (13. h4 $16) 13... e5 {[%emt 0:03:53]} (13... Nf6 $14) 14. Qxd6 {[%emt 0:00:53]} Qxd6 {[%emt 0:00:04]} 15. Rxd6 {[%emt 0:00:06]} Rd8 {[%emt 0:02:32] [#]} (15... Ne7 $16) 16. Rb6 $1 $18 {[%emt 0:01:48]} Rd7 {[%emt 0:02:50]} (16... Bc8 $142 17. f4 exf4) 17. a4 {[%emt 0:01:17][%cal Ba2a4,Ba4b5,Bb5a6][%mdl 32]} Ne7 {[%emt 0:01:47]} (17... bxa4 {was called for.} 18. Nxa4 Ne6) 18. axb5 {[%emt 0:02:47]} Nc8 {[%emt 0:00:42] [#]} 19. Rxb7 {[%emt 0:00:54]} Rxb7 {[%emt 0:00:07]} 20. bxa6 {[%emt 0:00:04]} Ra7 {[%emt 0:03:51]} 21. Nb5 {[%emt 0:00:50]} Rd7 {[%emt 0:01:03]} 22. Nec3 {[%emt 0:00:17]} Ne6 {[%emt 0:02:06]} 23. Nd5 {[%emt 0:00:27] Prevents Nb6.} Kd8 {[%emt 0:01:13]} 24. b4 {[%emt 0:01:24]} Nd4 {[%emt 0:04:28]} 25. Nxd4 {[%emt 0:01:24]} exd4 {[%emt 0:00:02]} 26. Bb5 {[%emt 0:00:36]} Rd6 {[%emt 0:01:41]} 27. Rd1 {[%emt 0:00:33]} Nb6 {[%emt 0:01:27]} 28. a7 {[%emt 0:03:19]} Na8 {[%emt 0:00:43]} 29. Rxd4 {[%emt 0:00:24]} Kc8 {[%emt 0:00:56]} 30. e5 {[%emt 0:01:28]} Re6 {[%emt 0:01:26]} 31. f4 {[%emt 0:07:52]} Kb7 {[%emt 0:03:55]} 32. Bd7 {[%emt 0:04:23]} Ra6 {[%emt 0:01:52]} (32... Rd8 $142 33. Bxe6 fxe6) 33. f5 {[%emt 0:01:32]} Rxa7 {[%emt 0:05:44]} 34. e6 {[%emt 0:00:32]} fxe6 {[%emt 0:01:31]} 35. fxe6 {[%emt 0:00:10]} Ra1+ {[%emt 0:03:31]} 36. Kb2 {[%emt 0:02:11]} Re1 {[%emt 0:00:30]} 37. e7 {[%emt 0:00:24] Threatens to win with b5.} Nc7 {[%emt 0:00:23]} (37... Nb6 $142 38. e8=Q Rexe8) 38. Nxc7 {[%emt 0:00:38]} Kxc7 {[%emt 0:03:28]} 39. e8=Q {[%emt 0:01:01]} Rhxe8 {[%emt 0:00:25]} 40. Bxe8 {[%emt 0:00:06]} Rxe8 {[%emt 0:00:05][%mdl 4096] Endgame KR-KR} 41. h4 {[%emt 0:00:59]} h6 {[%emt 0:02:41]} 42. Rf4 {[%emt 0:01:24]} g5 {[%emt 0:01:27]} (42... Re2 $142 43. Rf6 Re4 44. Rxg6 Rxb4+ 45. Kc3 Re4) 43. hxg5 {[%emt 0:00:18]} hxg5 {[%emt 0:00:08]} 44. Rc4+ {[%emt 0:01:03]} Kb6 {[%emt 0:00:29]} 45. Kb3 {[%emt 0:01:03]} Re3+ {[%emt 0:00:21]} 46. c3 {[%emt 0:00:23]} Rg3 {[%emt 0:00:06]} 47. Re4 {[%emt 0:00:31]} Kc6 {[%emt 0:01:23]} 48. Kc4 {[%emt 0:00:15]} Kd6 {[%emt 0:01:06]} 49. Rd4+ {[%emt 0:03:35]} Kc6 {[%emt 0:01:38]} 50. b5+ {[%emt 0:00:20]} Kb6 {[%emt 0:00:10]} 51. Kb4 {[%emt 0:00:58]} Rg1 {[%emt 0:00:14]} 52. c4 {[%emt 0:01:09] Rd6+ would kill now.} Rb1+ {[%emt 0:00:31]} 53. Kc3 {[%emt 0:00:08] Strongly threatening Rd6+.} Rg1 {[%emt 0:00:12]} 54. Re4 {[%emt 0:00:38]} (54. Rd6+ $142 Kb7 55. Rg6 Rg3+ 56. Kd4 Rh3 57. Rxg5 Kb6 58. Rg6+ Kb7 59. Kc5) 54... Rg2 {[%emt 0:01:22]} 55. Kd4 {[%emt 0:00:27]} (55. Re6+ $142 Kc7 56. c5) 55... Rd2+ {[%emt 0:00:35]} 56. Ke5 {[%emt 0:03:37]} Rf2 {[%emt 0:00:21]} 57. Kd4 {[%emt 0:02:03]} (57. Kd6 $142 Rc2 58. Ke7) 57... Rd2+ {[%emt 0:00:14] [#]} 58. Ke3 $1 {[%emt 0:00:07]} Rc2 {[%emt 0:01:56]} 59. Re6+ {[%emt 0:00:37]} Kc7 {[%emt 0:00:32]} 60. Rc6+ {[%emt 0:00:44]} (60. Rg6 $142 Kb7 61. Kd4) 60... Kb7 {[%emt 0:00:18]} 61. Rc5 {[%emt 0:01:17]} Kb6 {[%emt 0:02:08]} 62. Kd3 {[%emt 0:00:39]} Rc1 {[%emt 0:00:57]} 63. Rxg5 {[%emt 0:00:12] Rg6+ is the strong threat.} Rg1 {[%emt 0:00:08]} 64. Rg6+ {[%emt 0:00:20]} Kc7 {[%emt 0:00:15]} 65. Kd4 {[%emt 0:00:15] White mates.} Rd1+ {[%emt 0:00:15]} 66. Kc5 {[%emt 0:00:09]} Rd7 {[%emt 0:00:45]} 67. b6+ {[%emt 0:00:43]} Kb7 {[%emt 0:00:13]} 68. Kb5 {[%emt 0:00:10]} Rd1 {[%emt 0:00:07]} 69. Rg7+ {[%emt 0:00:06]} Kc8 {[%emt 0:00:46]} 70. c5 {[%emt 0:00:27]} Rb1+ {[%emt 0:00:33]} 71. Kc6 {[%emt 0:00:06][%cal Rg7g8]} Kd8 {[%emt 0:00:15]} 72. b7 {[%emt 0:00:43]} Rb2 {[%emt 0:00:18]} 73. b8=Q+ {[%emt 0:00:53] Weighted Error Value: White=0.17 (very precise) /Black=0.39} (73. g5 $142 Ke8 74. g6 Kf8 75. Rf7+ Kg8 76. Kc7 Rb5 77. b8=Q+ Rxb8 78. Kxb8 Kh8 79. c6 Kg8 80. c7 Kh8 81. c8=Q#) 1-0

[Event "32nd NATO Championship 2022"]
[Site "Tartu"]
[Date "2022.07.01"]
[Round "7.29"]
[White "Simard, Francois"]
[Black "Giedraitis, Mingaudas"]
[Result "0-1"]
[ECO "D13"]
[WhiteElo "1757"]
[BlackElo "1846"]
[Annotator "NA RC"]
[PlyCount "95"]
[EventDate "2022.06.27"]
[EventType "swiss"]
[EventCountry "EST"]
[SourceTitle "playchess.com"]
[Source "ChessBase"]
[SourceQuality "1"]
[TimeControl "5400+30"]

1. d4 {[%emt 0:01:02]} d5 {[%emt 0:00:05]} 2. c4 {[%emt 0:00:10]} c6 {[%emt 0:00:05]} 3. cxd5 {[%emt 0:00:04]} cxd5 {[%emt 0:00:01]} 4. Nc3 {[%emt 0:00:09]} Nc6 {[%emt 0:01:44]} 5. Nf3 {[%emt 0:01:20]} Nf6 {[%emt 0:00:25]} 6. Bg5 {[%emt 0:00:53]} e6 {[%emt 0:02:43]} 7. e3 {[%emt 0:00:38]} Be7 {[%emt 0:00:13]} 8. Rc1 {[%emt 0:00:19]} O-O {[%emt 0:00:55]} 9. Bd3 {[%emt 0:00:09]} Nh5 {[%emt 0:06:22]} 10. Bxe7 {[%emt 0:03:17]} Qxe7 {[%emt 0:05:08]} 11. O-O {[%emt 0:00:31]} g6 {[%emt 0:02:17]} 12. a3 {[%emt 0:03:51]} Qd6 {[%emt 0:06:33]} 13. Qc2 {[%emt 0:16:00]} Rd8 {[%emt 0:06:49]} 14. Na4 {[%emt 0:00:54]} Nf6 {[%emt 0:13:57]} 15. Nc5 {[%emt 0:00:42]} e5 {[%emt 0:05:36]} 16. dxe5 {[%emt 0:07:57]} Nxe5 {[%emt 0:00:14]} 17. Be2 {[%emt 0:05:26]} b6 {[%emt 0:06:47]} 18. Nb3 {[%emt 0:02:08]} Nxf3+ {[%emt 0:14:14]} 19. Bxf3 {[%emt 0:00:56]} Ba6 {[%emt 0:00:18]} 20. Rfd1 {[%emt 0:01:30]} Rac8 {[%emt 0:01:00]} 21. Qb1 {[%emt 0:07:55]} Bb7 {[%emt 0:03:41]} 22. Nd4 {[%emt 0:18:52]} Qe7 {[%emt 0:03:34]} 23. Rxc8 {[%emt 0:04:16]} Rxc8 {[%emt 0:00:14]} 24. Rc1 {[%emt 0:00:40]} Rc5 {[%emt 0:03:17]} 25. Rc2 {[%emt 0:02:18]} Ne4 {[%emt 0:01:30]} 26. Qc1 {[%emt 0:01:35]} Kg7 {[%emt 0:04:11]} 27. b4 {[%emt 0:05:30]} Rxc2 {[%emt 0:00:47]} 28. Qxc2 {[%emt 0:00:08]} Qd7 {[%emt 0:00:59]} 29. Bd1 {[%emt 0:01:23]} Ba6 {[%emt 0:01:44]} 30. Qc6 {[%emt 0:01:12]} Bc8 {[%emt 0:06:43]} 31. Bb3 {[%emt 0:05:46]} Nf6 {[%emt 0:00:27]} 32. Ba4 {[%emt 0:02:15]} Qxc6 {[%emt 0:01:11]} 33. Bxc6 {[%emt 0:00:33]} a6 {[%emt 0:02:34]} 34. Ne2 {[%emt 0:00:55]} Kf8 {[%emt 0:00:26]} 35. Nc3 {[%emt 0:00:10]} Be6 {[%emt 0:00:11]} 36. Na4 {[%emt 0:00:13]} Bd7 {[%emt 0:00:10]} 37. Bxd7 {[%emt 0:00:25]} Nxd7 {[%emt 0:00:01]} 38. Kf1 {[%emt 0:00:22]} Ke7 {[%emt 0:00:02]} 39. Ke2 {[%emt 0:00:31]} b5 {[%emt 0:00:26]} 40. Nb2 {[%emt 0:01:04]} Ne5 {[%emt 0:00:24]} 41. Nd3 {[%emt 0:00:51]} Nc4 $11 {[%emt 0:01:21]} 42. Nc5 {[%emt 0:00:29]} a5 {[%emt 0:00:26]} 43. bxa5 {[%emt 0:02:38]} Nxa5 {[%emt 0:00:08]} 44. Kd3 {[%emt 0:00:27]} Kd6 {[%emt 0:00:23]} 45. Kd4 {[%emt 0:00:43]} Nc6+ {[%emt 0:00:12]} 46. Kd3 {[%emt 0:04:23]} Ke5 {[%emt 0:03:02]} 47. Na4 {[%emt 0:00:30]} Kd6 {[%emt 0:00:30]} 48. Nb6 {[%emt 0:00:30]} 0-1